Cogmind - Beta 13 @@@ ROGUE MODE // 2024.02.27 @ 17:20:34 Player: lsend Result: Destroyed by M3-D6N(R) with Subdweller Beam Cannon Performance ------------- Evolutions (0) 0 Regions Visited (2) 400 Robots Destroyed (5) 25 Value Destroyed (205) 205 Prototype IDs (0) 0 Alien Tech Used (0) 0 Bonus (0) 0 TOTAL SCORE: 630 Bonus ------- None Cogmind --------- Core Integrity 0/250 Matter 280/300 Energy 98/100 System Corruption 0% Temperature Cool (9) Movement Core (100) Ox1 Location -10/Subcaves Parts ------- > --- POWER (1) -------- (None) > --- PROPULSION (2) --- (None) > --- UTILITY (2) ------ (None) > --- WEAPON (2) ------- Grenade Launcher Makeshift Hammer > --- INVENTORY (5) ---- Subdweller Power Source Small Storage Unit Makeshift Light Armor Plating Piercing Trap Peak State ------------ > --- POWER ------------ (None) > --- PROPULSION ------- Spiked Treads Subdweller Monowheel > --- UTILITY ---------- Makeshift Light Armor Plating > --- WEAPON ----------- Makeshift Hammer > --- INVENTORY -------- Subdweller Power Source Flight Unit Small Storage Unit Grenade Launcher Piercing Trap [Rating: 12] Favorites ----------- Power Subdweller Power Source Engine Subdweller Power Source Propulsion Light Treads Treads Light Treads Wheel Subdweller Monowheel Flight Unit Flight Unit Utility Seismic Detector Device Seismic Detector Protection Makeshift Light Armor Plating Weapon Makeshift Hammer Energy Gun Subdweller Laser Launcher Grenade Launcher Impact Weapon Makeshift Hammer Build | -11 -10 -10 ------- Run | Yrd Mat Sub Slots Evolved . | . . . Power . | . . . Propulsion . | . . . Utility . | . . . Weapon . | . . . Parts Attached 15 | 2 1 12 Power 1 | . . 1 Engine 1 | . . 1 Core . | . . . Reactor . | . . . Propulsion 5 | 2 . 3 Treads 3 | 2 . 1 Leg . | . . . Wheel 1 | . . 1 Hover . | . . . Flight 1 | . . 1 Utility 5 | . 1 4 Device 3 | . 1 2 Storage . | . . . Processor . | . . . Hackware . | . . . Protection 2 | . . 2 Artifact . | . . . Weapon 4 | . . 4 Energy Gun 1 | . . 1 Energy Cannon . | . . . Ballistic Gun . | . . . Ballistic Cannon . | . . . Launcher 2 | . . 2 Special Weapon . | . . . Impact Weapon 1 | . . 1 Slashing Weapon . | . . . Piercing Weapon . | . . . Special Melee Weapon . | . . . Unidentified Prototypes . | . . . Parts Lost 5 | . . 5 Power . | . . . Propulsion 5 | . . 5 Utility . | . . . Weapon . | . . . Highest Loss Streak 2 | . . 2 To Critical Strikes . | . . . Average Slot Usage (%) 42 | . 38 44 Treads 24 | . 28 22 Device 7 | . 10 6 Launcher 2 | . . 3 Impact Weapon 5 | . . 8 Naked Turns . | . . . Heaviest Build 10 | . 1 10 Greatest Support 4 | 3 3 4 Greatest Overweight (x) 3 | . . 3 Average Overweight (x) . | . . . Largest Inventory Capacity 5 | 5 5 5 Average Capacity 5 | 5 5 5 Most Carried 5 | 1 2 5 Average Carried 3 | . 1 4 Final Capacity 5 | 5 5 5 Final Carried 4 | 1 2 4 Class Distribution -------------------- 93% | Mutant 6% | Subdweller-Mutant Dominant Class ---------------- Mutant | -10/Materials Mutant | -10/Subcaves Resources | -11 -10 -10 ----------- Run | Yrd Mat Sub Matter Collected 360 | 172 . 188 Remotely . | . . . Salvage Created 195 | . . 195 Parts 7 | . . 7 Haulers Intercepted . | . . . Recyclers Shooed . | . . . Parts Field Recycled . | . . . Retrieved Matter . | . . . Parts Self-Destructed 6 | . . 6 Prevented . | . . . Kills | -11 -10 -10 ------- Run | Yrd Mat Sub Combat Hostiles Destroyed 5 | . . 5 Melee 3 | . . 3 Classes Destroyed 3 | . . 3 Sentry 1 | . . 1 Cobbler 1 | . . 1 Subdweller 4 | . . 4 Best Kill Streak 1 | . . 1 Combat Bots Only 1 | . . 1 Max Kills in Single Turn 1 | . . 1 Gunslinging . | . . . Exploded . | . . . Melee 1 | . . 1 Uniques/NPCs Destroyed . | . . . Combat | -11 -10 -10 -------- Run | Yrd Mat Sub Hostile Shots Fired 78 | . . 78 Missed 26 | . . 26 Damage Taken 990 | . . 990 Core 262 | . . 262 Absorbed by Shields . | . . . Core Remaining (%) 100 | 100 . . Volleys Fired 3 | . . 3 Largest 1 | . . 1 Hottest 30 | . . 30 Shots Fired 3 | . . 3 Gun . | . . . Cannon . | . . . Launcher 3 | . . 3 Special . | . . . Kinetic . | . . . Thermal . | . . . Explosive 3 | . . 3 Electromagnetic . | . . . Robot Hit Streak . | . . . Robot Miss Streak . | . . . Penetration Max . | . . . Secondary Targets . | . . . Shots Hit Robots 25 | . . 25 Core Hits 4 | . . 4 Critical Kills . | . . . Critical Parts Destroyed 3 | . . 3 Critical Strikes 4 | . . 4 Smash 4 | . . 4 Melee Attacks 45 | . . 45 Impact 45 | . . 45 Slashing . | . . . Piercing . | . . . Sneak Attacks 1 | . . 1 Combat Hostiles . | . . . Follow-up Attacks . | . . . Damage Inflicted 952 | . . 952 Guns . | . . . Cannons . | . . . Explosions 8 | . . 8 Melee 944 | . . 944 Ramming . | . . . Kinetic . | . . . Thermal . | . . . Explosive 8 | . . 8 Electromagnetic . | . . . Impact 944 | . . 944 Slashing . | . . . Piercing . | . . . Highest Corruption . | . . . Average Corruption . | . . . Corruption Purged . | . . . Corruption Blocked . | . . . Overload Shots . | . . . Overflow Damage 199 | . . 199 Projectiles . | . . . Explosions . | . . . Melee 199 | . . 199 Knockbacks 5 | . . 5 Impact 5 | . . 5 Kinetic . | . . . Secondary . | . . . Self-Inflicted Damage 24 | . . 24 Shots 1 | . . 1 Rammed . | . . . Targets Rammed . | . . . Kicked . | . . . Crushed . | . . . Highest Temperature . | . . . Average Temperature . | . . . Received Heat Transfer 117 | . . 117 Siege Activations . | . . . Robots Corrupted . | . . . Combat Hostiles . | . . . Parts Fried 1 | . . 1 Impact Corruptions 8 | . . 8 Robots Melted . | . . . Combat Hostiles . | . . . Parts Melted . | . . . Heat Transferred . | . . . Parts Sabotaged . | . . . Parts Stolen . | . . . Parts Stripped . | . . . Power Chain Reactions . | . . . Alert | -11 -10 -10 ------- Run | Yrd Mat Sub Peak Influence 71 | . 71 . Initial . | . . . Average 30 | . 31 . Maximum Alert Level . | . . . Low Security (%) 100 | 100 100 . Level 1 . | . . . Level 2 . | . . . Level 3 . | . . . Level 4 . | . . . Level 5 . | . . . High Security . | . . . Max Security . | . . . Squads Dispatched . | . . . Investigation . | . . . Extermination . | . . . Reinforcement . | . . . Assault . | . . . Garrison . | . . . Intercept . | . . . Searches Triggered . | . . . Construction Impeded . | . . . Haulers Reinforced . | . . . Active Scanning Responses . | . . . Cargo Convoy Interrupts . | . . . Stealth | -11 -10 -10 --------- Run | Yrd Mat Sub Distress Signals . | . . . Communications Jammed . | . . . Distress Signals . | . . . Times Spotted 31 | . 3 28 Peak Tracking Total 10 | . 2 10 Tactical Retreats 4 | . . 4 Traps | -11 -10 -10 ------- Run | Yrd Mat Sub Traps Triggered 1 | . . 1 Indirectly . | . . . Trap Hack Attempts . | . . . Triggered . | . . . Disarmed . | . . . Reprogrammed . | . . . Reused . | . . . Traps Extracted . | . . . Installed 1 | . . 1 Triggered . | . . . Most Traps Carried 1 | . . 1 Machines | -11 -10 -10 ---------- Run | Yrd Mat Sub Machines Disabled . | . . . Max in Single Turn . | . . . Machines Repaired . | . . . Machines Dismantled . | . . . Machines Sabotaged . | . . . Overloaded Fab Kills . | . . . Hacking | -11 -10 -10 --------- Run | Yrd Mat Sub Machines Accessed 5 | . 5 . Terminals 5 | . 5 . Fabricators . | . . . Repair Stations . | . . . Recycling Units . | . . . Scanalyzers . | . . . Garrison Access . | . . . Total Hacks 10 | . 10 . Successful 4 | . 4 . Failed 6 | . 6 . Catastrophic 1 | . 1 . Database Lockouts . | . . . Manual 8 | . 8 . Terminals 10 | . 10 . Fabricators . | . . . Repair Stations . | . . . Recycling Units . | . . . Scanalyzers . | . . . Garrison Access . | . . . Terminal Hacks 4 | . 4 . Locate Traps 1 | . 1 . Zone Layout 3 | . 3 . Fabricator Hacks . | . . . Repair Station Hacks . | . . . Recycling Unit Hacks . | . . . Scanalyzer . | . . . Garrison Access Hacks . | . . . Unauthorized Hacks . | . . . Terminals . | . . . Fabricators . | . . . Repair Stations . | . . . Recycling Units . | . . . Scanalyzers . | . . . Garrison Access . | . . . Data Cores Recovered . | . . . Used . | . . . Hacking Detections 3 | . 3 . Full Trace Events . | . . . Feedback Events . | . . . Feedback Blocked . | . . . Robot Schematics Acquired . | . . . Robots Built . | . . . Authchips . | . . . Time . | . . . Total Robot Build Rating . | . . . Part Schematics Acquired . | . . . Parts Built . | . . . Authchips . | . . . Time . | . . . Total Part Build Rating . | . . . Parts Repaired . | . . . Time . | . . . Parts Recycled . | . . . Recycled Matter . | . . . Retrieved Matter . | . . . Retrieved Components . | . . . Parts Scanalyzed . | . . . Part Schematics Acquired . | . . . Parts Damaged . | . . . Bothacking | -11 -10 -10 ------------ Run | Yrd Mat Sub Used RIF Installer . | . . . Robots Hacked . | . . . Non-combat . | . . . Combat . | . . . Robot Hacks Applied . | . . . Relay Couplers Released . | . . . Fabnet Peak Effective % . | . . . Robots Rewired . | . . . Allies Hacked . | . . . Hacks Repelled . | . . . Allies | -11 -10 -10 -------- Run | Yrd Mat Sub Total Allies . | . . . Largest Group . | . . . Highest-Rated Group . | . . . Highest-Rated Ally . | . . . Total Orders . | . . . Ally Attacks . | . . . Total Damage . | . . . Kills . | . . . Allies Corrupted . | . . . Allies Melted . | . . . Intel | -11 -10 -10 ------- Run | Yrd Mat Sub Robot Analysis Total . | . . . Derelict Logs Recovered 2 | . . 2 Drone Launches . | . . . Drone Recoveries . | . . . Exploration | -11 -10 -10 ------------- Run | Yrd Mat Sub Turns Passed 1978 | 23 654 1301 Spaces Moved 2363 | 38 392 1933 Core 2187 | 38 392 1757 Treads . | . . . Legs . | . . . Wheels . | . . . Hover . | . . . Flight 176 | . . 176 Fastest Speed 40 | 50 50 40 Average Speed 58 | 50 50 60 Slowest Speed 200 | 50 50 200 Overloaded Moves . | . . . Propulsion Burnouts . | . . . Robots Hopped . | . . . Cave-ins Triggered . | . . . Exploration Rate (%) 48 | 3 57 85 Regions Visited 2 Branch Regions 1 Pre-discovered Areas 1 | . . 1 Known Exits Taken . | . . . Unknown Exits Taken 2 | 1 1 . Scrap Searched 6 | . . 6 Spaces Dug . | . . . Terrain Destroyed 16 | . . 16 Melee . | . . . Projectile . | . . . AOE 16 | . . 16 Terrain Rammed . | . . . Walls Destroyed . | . . . Machines Disabled . | . . . Actions | -11 -10 -10 --------- Run | Yrd Mat Sub Total 2906 | 40 848 2018 Wait 464 | . 455 9 Move 2361 | 37 391 1933 Hop . | . . . Pick Up 5 | 1 1 3 Fast Attach 12 | 2 1 9 Attach 3 | . . 3 Detach 6 | . . 6 Swap . | . . . Drop 6 | . . 6 Fire 3 | . . 3 Melee 45 | . . 45 Ram . | . . . Kick . | . . . Crush . | . . . Escape Stasis . | . . . Rewire . | . . . Trap 1 | . . 1 Miscellaneous . | . . . Route ------- -11/Scrapyard -10/Materials (discovered 4 exits: [*Mat x2] / [*Min] / [*Sub]) -10/Subcaves (discovered 2 exits: *Mat x2) History --------- Turn | Location | Event 13 | -11/Scrapyard | Discovered new exit (range 15) 24 | -11/Scrapyard | Entered Materials 107 | -10/Materials | Discovered new exit (range 11) 111 | -10/Materials | Discovered new exit (range 14) 185 | -10/Materials | Discovered new exit (range 8) 304 | -10/Materials | Build established: Mutant 660 | -10/Materials | Discovered new exit (range 7) 678 | -10/Materials | Entered Subcaves 717 | -10/Subcaves | Ambushed by swarm of Subdwellers 981 | -10/Subcaves | Identified exit to Materials 1044 | -10/Subcaves | A swath of the cavern ceiling suddenly collapsed 1119 | -10/Subcaves | Shifting Twisted Machinery released Mak. Hammer 1135 | -10/Subcaves | Shifting Twisted Machinery released Riot Gun 1167 | -10/Subcaves | Shifting Twisted Machinery released Battle Rifle 1167 | -10/Subcaves | Shifting Twisted Machinery released Scrap Shield 1677 | -10/Subcaves | Learned location of Zion (-7) 1848 | -10/Subcaves | Core integrity fell below 50% 1901 | -10/Subcaves | Ambushed by Subdwellers from Twisted Machinery 1926 | -10/Subcaves | Ambushed by Subdwellers from Twisted Machinery 1937 | -10/Subcaves | Discovered exit to Materials (range 11) 1961 | -10/Subcaves | Core integrity fell below 20% 1979 | -10/Subcaves | Destroyed by M3-D6N(R) with Subdweller Beam Cannon Last Messages --------------- 01839_ Sub. Monowheel destroyed. 01845_ Destroyed Sub. Monowheel. 01845_ ZC-3U9(R) system corrupted by crushing effect. 01846_ ZC-3U9(R) system terminally corrupted. 01851_ KQ-L82(R) destroyed. 01866_ Y-45 Defender suffers critical hit (Smash). 01866_ Destroyed Imp. Ion Engine. 01866_ Y-45 Defender system corrupted by crushing effect. 01868_ Destroyed Heat Sink. 01868_ Y-45 Defender system corrupted by crushing effect. 01876_ Y-45 Defender destroyed. 01880_ Acquired 10 matter. 01886_ Searching scrap... 01886_ Found Mak. Light Armor Plating. 01886_ Found Piercing Trap. 01886_ Found 27 Matter. 01901_ DY-M5Q(R) emerges from the Twisted Machinery. 01909_ Installed Piercing Trap. 01937_ EXIT=FOUND: MATERIALS 01951_ Flight Unit destroyed. Map ----- +----------------------------------------------------+ | ???????????????????????????# ## ##?????? | | ???????????????????????????# #### ##??????? | | ??????????????????????????# ##??## ##???????? | | ??????????????????????????#####????## &#????????? | | ????????????????????????????????????##[!#????????? | | ?????????????????????????????????????#&]##???????? | | ?????????????????????????????????????#%|%#???????? | | ?????????????????????????????????????#!*&#???????? | | ?????????????????????????????????????#&&####?????? | | ????????????????????????????????????## & ##????? | | ????????????????????????????????????# #????? | | ????????????????????????????????????## #????? | | ?????????????????????????????????????# ##????? | | ?????????????????????????????????????# % #?????? | | ?????????????????????????????????????# =" #?????? | | ?????????????????????????????????????## /##?????? | | ?????????????????????????????????????## #??????? | | ?????????????????????????????????????# ##?????? | | ????????????????????????????????????## " ##????? | | ????????????????????????????????##### " #????? | | ???????????########??????####?### " #????? | | ??????????## ######## ### ####????? | | ??????????# ## # #???????? | | ?????????## < #### " #???????? | | ?????????# & < #??# ####?????? | | ?????????#" # @ ## ## #?????? | | ?????????# ## ### #?????? | | ?????????# "### # # ##?????? | | ?????????## " "?## R # ##?????? | | ??????????#& #"?## ### | *! #####?# | | ??????????# #### ##?# %=R %= ## ### | | ?????????## ## ####; ### | | ?????????# ### #?## | | ?????????## ## & #??## " | | ??????????### *R&#???######## | | ????????????## ## #; & #??????????## | | ?????????????##### ## ### ##??????????? | | ?????????????????# ### ### ##?????????? | | ?????????????????###?# #### #?????????? | | ?????????????????????###??### ##?????????? | | ???????????????????????????## ##??????????? | | ???????????????????????????# ##???????????? | | ???????????????????????????# ##????????????? | | ???????????????????????????# #?????????????? | | ???????????????????????????# =!# #?????????????? | | ???????????????????????????# !%# #?????????????? | | ???????????????????????????# *# ?????????????? | | ???????????????????????????# # ????????????? | | ???????????????????????????# ## #???????????? | | ???????????????????????????# ### #???????????? | +----------------------------------------------------+ Best States ------------- Heat Dissipation 25 Energy Generation 5 Energy Capacity 200 Matter Stores 300 Matter Capacity 300 Sight Range 21 Terrain Scan Density 10 Armor Coverage 100 Evasion (%) 62 Item Schematics ----------------- None Robot Schematics ------------------ None Fabricated ------------ Nothing Alien Tech Used ----------------- None Achievements -------------- None Challenges ------------ None Game ------ Seed LightPoweredShockpuncher Manual? 0 Play Time 00:25:13 Cumulative 660.3 hours Start 2024.02.27 @ 16:48:03 End 2024.02.27 @ 17:20:34 Sessions 1 Manual Loads 0 Difficulty Rogue Special Mode None Game No. 506 Rogue 506 Adventurer 0 Explorer 0 Win Type - Total 170 Types 95/9/49/6/3/2/4/1/1 Lore% 89 Gallery% 90 Achievement% 84 Wizard Run 0 Options --------- Layout 0 ASCII 1 Keyboard 0 Movement Vi Keybinds 0 Fullscreen 1 Font 16/Smallcaps Map View 184x79 Zoom Use 0% Tactical HUD 1 Map Filters NONE Filters NONE Steam 1 RUN: 2f5219fa-a1ba-4524-862e-47850fa678d5